bitfinex-derivatives/quotes_ETHF0:USTF0_20250217
["timestamp","ask_amount","ask_price","bid_price","bid_amount"]
[1739786161012,3.90107656,2728.7,2728.6,0.00549179]
[1739786162710,3.16816656,2728.7,2728.6,0.00549179]
[1739786163010,2.559,2728.7,2728.6,0.73843179]
[1739786163610,2.56449179,2729.1,2729.0,0.73283]
[1739786164012,0.00549179,2729.1,2729.0,0.73283]
[1739786164608,0.00549179,2729.1,2729.0,1.81313]
[1739786165310,2.559,2729.4,2729.0,1.0803]
[1739786165519,2.559,2729.4,2729.2,0.73275]
[1739786165812,2.559,2729.4,2729.1,3.2078]
[1739786166006,0.73276,2729.3,2729.1,3.2078]
[1739786166310,0.73278,2729.2,2729.1,3.2078]
[1739786166710,3.16816656,2729.3,2729.0,1.0803]
[1739786166910,0.7328,2729.1,2729.0,1.0803]
[1739786167315,0.73283,2729.0,2728.9,0.5792]
[1739786167515,3.16816656,2729.0,2728.6,0.00549179]
[1739786167818,5.72716656,2729.0,2728.9,0.73286]
[1739786168120,5.72716656,2729.0,2728.8,0.73287]
[1739786168417,5.72716656,2729.0,2728.8,1.30707]
[1739786168716,5.72716656,2729.0,2728.8,0.5742]
[1739786168919,6.46001656,2729.0,2728.8,1.30708]
[1739786169219,0.73286,2728.9,2728.8,0.5742]
[1739786169407,0.73288,2728.8,2728.7,0.581]
[1739786169607,0.73291,2728.7,2728.6,0.00549179]
[1739786169808,3.90107656,2728.7,2728.6,0.00549179]
[1739786170014,0.73287,2728.9,2728.7,0.7329]
[1739786170216,0.73281,2729.1,2728.9,0.73286]
[1739786170416,2.558,2728.9,2728.8,0.73287]
[1739786170614,2.558,2728.9,2728.6,0.55079179]
[1739786170816,0.73288,2728.8,2728.6,1.28373179]
[1739786171021,2.558,2728.9,2728.6,1.28373179]
[1739786171222,3.29088,2728.9,2728.6,1.28373179]
[1739786171513,2.558,2728.9,2728.6,0.55079179]
[1739786171714,3.16816656,2729.3,2728.7,3.2078]
[1739786171923,2.558,2729.2,2729.1,0.73279]
[1739786172721,2.558,2729.2,2729.1,1.1158]
[1739786172916,2.558,2729.2,2729.1,1.8486]
[1739786173622,2.56349179,2729.5,2729.4,0.73272]
[1739786173823,0.00549179,2729.5,2729.4,0.73272]
[1739786177331,0.00549179,2729.5,2729.0,3.2078]
[1739786177532,0.73284,2729.0,2728.7,1.1408]
[1739786177733,3.90096656,2729.1,2728.9,0.73284]
[1739786178032,3.90097656,2729.1,2728.9,0.73284]
[1739786178222,3.90097656,2729.1,2728.8,0.73286]
[1739786178425,3.90097656,2729.1,2728.7,1.1408]
[1739786178627,5.72616656,2729.1,2728.7,1.1408]
[1739786178826,5.72616656,2729.1,2729.0,0.73283]
[1739786178827,2.558,2729.1,2729.0,0.73283]
[1739786179431,2.558,2729.3,2729.2,0.73276]
[1739786179631,0.00549179,2729.5,2728.9,3.2078]
[1739786179833,2.558,2729.4,2729.3,0.73272]
[1739786180535,0.00549179,2729.5,2729.4,0.73272]
[1739786181338,0.00549179,2729.5,2728.9,3.2078]
[1739786181538,0.73277,2729.3,2729.0,0.73282]
[1739786182342,0.73277,2729.3,2729.1,0.73279]
[1739786182537,0.73275,2729.3,2729.2,0.73277]
[1739786182738,0.73275,2729.3,2729.1,0.73279]
[1739786182935,0.73277,2729.3,2728.9,3.2078]
[1739786183136,0.73277,2729.3,2729.0,0.73283]
[1739786183334,0.73277,2729.3,2729.1,0.73279]
[1739786183948,0.73277,2729.3,2728.9,3.2078]
[1739786184242,0.73277,2729.3,2729.1,0.73279]
[1739786185040,0.73277,2729.3,2728.9,3.2078]
[1739786185339,3.90089656,2729.4,2729.3,0.73275]
[1739786185542,3.16816656,2729.4,2729.3,0.73275]
[1739786185745,0.00549179,2729.5,2728.9,3.2078]
[1739786185746,0.00549179,2729.5,2729.4,0.73272]
[1739786186740,40.8295,2730.3,2729.4,0.73272]
[1739786186741,10.0,2730.0,2729.9,0.73259]
[1739786186946,0.3664,2730.6,2729.9,0.73259]
[1739786186947,5.72516656,2730.6,2729.9,3.94039]
[1739786187140,5.72516656,2730.6,2729.9,3.2078]
[1739786187339,0.73247,2730.4,2730.0,0.73255]
[1739786187540,3.16816656,2730.3,2730.1,1.1186]
[1739786187838,0.73251,2730.2,2730.1,1.1186]
[1739786188042,3.16816656,2730.3,2730.1,1.1186]
[1739786188351,3.16816656,2730.3,2730.2,0.73251]
[1739786190148,0.00549179,2730.5,2730.4,0.73245]
[1739786190349,0.73794179,2730.5,2730.3,0.73247]
[1739786190751,2.56249179,2730.5,2730.1,1.1186]
[1739786191248,0.00549179,2730.5,2730.4,0.73245]
[1739786192245,0.00549179,2730.5,2730.1,1.1186]
[1739786192547,0.73246,2730.4,2730.2,3.2078]
[1739786192745,0.73793179,2730.5,2730.2,3.2078]
[1739786192950,0.73793179,2730.5,2730.3,0.73247]
[1739786193451,0.00549179,2730.5,2730.2,3.2078]
[1739786193743,0.73794179,2730.5,2730.3,0.73248]
[1739786194146,0.73245,2730.4,2730.2,3.94029]
[1739786194550,3.16816656,2730.3,2730.2,3.2078]
[1739786194742,3.73365835,2730.5,2730.3,0.73246]
[1739786194942,4.46608835,2730.5,2730.3,0.73246]
[1739786195342,0.73246,2730.4,2730.2,3.9403]
[1739786195651,0.73246,2730.4,2730.2,3.2078]
[1739786195849,3.73365835,2730.5,2730.2,3.2078]
[1739786196251,3.17365835,2730.5,2730.4,0.73245]
[1739786196449,0.00549179,2730.5,2730.4,0.73245]
[1739786196648,5.72416656,2731.1,2730.5,1.83108]
[1739786196849,0.7323,2731.0,2730.5,3.7876]
[1739786197044,6.45644656,2731.1,2730.9,0.73231]
[1739786197251,5.72416656,2731.1,2730.8,0.73234]
[1739786197451,5.72416656,2731.1,2730.5,3.2078]
[1739786197646,3.16816656,2730.7,2730.5,3.94023]
[1739786197850,5.72416656,2730.7,2730.6,0.7324]
[1739786198153,6.45654656,2730.7,2730.6,0.7324]
[1739786198355,0.7324,2730.6,2730.5,3.2078]
[1739786200358,2.556,2730.6,2730.5,3.94022]
[1739786200750,3.2884,2730.6,2730.5,3.2078]
[1739786200955,3.2884,2730.6,2730.5,3.94023]
[1739786201251,2.556,2730.6,2730.5,3.94023]
[1739786201657,2.556,2730.6,2730.5,3.2078]
[1739786201855,3.2884,2730.6,2730.5,3.2078]
[1739786202755,2.556,2730.6,2730.5,3.94023]
[1739786203150,2.556,2730.6,2730.5,3.2078]
[1739786203353,3.2884,2730.6,2730.5,3.2078]
[1739786203553,6.45656656,2730.6,2730.5,3.2078]
[1739786207160,8.93196656,2730.6,2730.2,0.5496]
[1739786207354,0.73251,2730.2,2730.1,1.1186]
[1739786208560,2.555,2730.2,2730.0,3.2078]
[1739786208760,0.73254,2730.1,2730.0,3.2078]
[1739786212561,0.73256,2730.0,2729.9,0.00549179]
[1739786212761,7.10852656,2730.0,2729.9,0.00549179]
[1739786219065,6.49536,2730.0,2729.9,0.00549179]
[1739786220673,3.2078,2730.0,2729.9,0.00549179]
[1739786220972,5.7628,2730.0,2729.9,1.89718179]
[1739786221171,5.7628,2730.0,2729.9,1.16459179]
[1739786221374,6.49536,2730.0,2729.9,1.16459179]
[1739786222471,0.73255,2730.1,2729.9,1.89716179]
[1739786222777,3.28755,2730.1,2729.9,1.89716179]
[1739786223667,0.73256,2730.0,2729.9,1.16459179]
[1739786224276,0.73256,2730.0,2729.9,0.00549179]
[1739786224465,1.30476,2730.0,2729.9,0.00549179]
[1739786225479,3.28755,2730.1,2729.9,0.73806179]
[1739786225780,0.73255,2730.1,2729.9,0.73806179]
[1739786225975,2.555,2730.1,2730.0,0.73255]
[1739786226569,3.16816656,2730.4,2729.9,0.00549179]
[1739786226877,2.555,2730.4,2730.0,3.2078]
[1739786227086,23.47416656,2730.7,2730.5,0.73242]
[1739786227274,3.16816656,2730.7,2730.6,0.5463]
[1739786227475,5.72316656,2730.7,2730.6,0.5463]
[1739786227875,3.16816656,2730.7,2730.6,0.5463]
[1739786228074,6.38145835,2731.1,2730.7,0.73237]
[1739786228279,2.555,2731.0,2730.8,1.0956]
[1739786228483,3.28731,2731.0,2730.8,1.0956]
[1739786229070,2.555,2731.0,2730.8,1.0956]
[1739786229474,2.555,2731.0,2730.8,1.82795]
[1739786229683,2.554,2731.0,2730.9,3.2078]
[1739786229883,2.554,2731.0,2730.9,3.9401]
[1739786230669,2.554,2731.0,2730.9,3.94012]
[1739786232477,0.00549179,2731.1,2730.9,3.2078]
[1739786232680,0.00549179,2731.1,2731.0,0.73229]
[1739786235883,2.554,2731.4,2731.3,0.73221]
[1739786236387,3.16816656,2731.8,2731.6,0.73212]
[1739786236579,3.16816656,2731.8,2731.2,3.2078]
[1739786236580,3.90024656,2731.8,2731.7,1.1137]
[1739786236781,6.45324656,2731.8,2731.7,1.1137]
[1739786237586,5.72116656,2731.8,2731.7,1.84581]
[1739786237776,5.72116656,2731.8,2731.7,1.1137]
[1739786237981,5.72116656,2731.8,2731.7,1.84581]
[1739786238384,3.16816656,2731.8,2731.7,1.84581]
[1739786238891,2.553,2731.9,2731.7,1.1137]
[1739786239080,2.553,2731.9,2731.8,0.73208]
[1739786240083,0.00545789,2732.0,2731.9,0.73205]
[1739786240675,0.73748789,2732.0,2731.9,0.73205]
[1739786241082,0.00545789,2732.0,2731.9,0.73205]
[1739786241281,0.73748789,2732.0,2731.9,0.73205]
[1739786241687,0.73748789,2732.0,2731.7,1.1137]
[1739786241992,0.73748789,2732.0,2731.9,0.73205]
[1739786242289,0.00545789,2732.0,2731.9,0.73205]
[1739786247930,0.00545789,2732.0,2731.7,1.1137]
[1739786247931,0.73748789,2732.0,2731.8,0.73206]
[1739786248153,0.73748789,2732.0,2731.9,0.73205]
[1739786248327,0.00545789,2732.0,2731.9,0.73205]
[1739786248623,0.73748789,2732.0,2731.9,0.73205]
[1739786248822,0.00545789,2732.0,2731.9,0.73205]
[1739786252789,5.71916656,2732.8,2732.5,0.73187]
[1739786252988,5.71916656,2732.8,2732.3,1.82854]
[1739786252989,0.7319,2732.5,2732.3,1.82854]
[1739786253196,3.16816656,2732.5,2732.3,1.6661]
[1739786253393,0.73195,2732.3,2732.2,3.2078]
[1739786253793,3.16816656,2732.5,2732.2,3.93977]
[1739786254089,0.73195,2732.3,2732.2,3.2078]
[1739786254991,1.121,2732.4,2732.2,3.2078]
[1739786255290,0.73195,2732.3,2732.2,3.2078]
[1739786255698,2.551,2732.3,2731.9,1.6889]
[1739786255888,0.732,2732.1,2731.9,1.6889]
[1739786256091,0.732,2732.1,2731.9,2.42094]
[1739786257192,0.73203,2732.0,2731.9,1.6889]
[1739786257392,0.73202,2732.1,2731.9,2.42094]
[1739786257593,0.73202,2732.1,2731.9,1.6889]
[1739786257796,3.16212539,2732.2,2732.0,0.73203]
[1739786258096,0.732,2732.1,2732.0,0.73203]
[1739786258396,3.89411539,2732.2,2732.0,0.73203]
[1739786258601,3.16212539,2732.2,2732.0,0.73203]
[1739786258799,3.16212539,2732.2,2732.1,0.732]
[1739786259094,3.28296,2732.3,2732.2,0.73197]
[1739786259401,2.551,2732.3,2732.2,0.73197]
[1739786259795,3.28295,2732.3,2732.2,0.73197]
[1739786260094,2.551,2732.3,2732.2,0.73197]
[1739786260597,3.16816656,2732.5,2732.1,3.2078]
[1739786260903,5.71916656,2732.5,2732.1,3.2078]
[1739786261101,0.73193,2732.4,2732.1,3.2078]
[1739786261292,0.73192,2732.4,2732.2,0.73195]
[1739786261493,0.73194,2732.4,2732.2,0.73195]
[1739786261796,3.16816656,2733.3,2732.9,0.73177]
[1739786262098,1.30122,2733.2,2732.9,0.73177]
[1739786262295,0.5695,2733.2,2733.0,1.85705]
[1739786262696,0.5695,2733.2,2733.1,0.73173]
[1739786262902,0.5695,2733.2,2733.0,1.85705]
[1739786263198,3.53456656,2733.5,2733.0,1.1253]
[1739786263398,0.73167,2733.4,2733.1,0.73172]
[1739786263705,5.71816656,2733.5,2733.0,5.06485]
[1739786264000,0.73166,2733.4,2733.1,0.73173]
[1739786264196,5.71816656,2733.5,2733.0,4.3331]
[1739786264197,6.44980656,2733.5,2733.2,0.73169]
[1739786264402,0.73167,2733.4,2733.1,0.73171]
[1739786264792,0.73166,2733.4,2733.1,0.73171]
[1739786265604,0.73168,2733.3,2733.1,0.73171]
[1739786266101,0.73167,2733.4,2733.1,0.73171]
[1739786266698,5.71816656,2733.5,2733.0,4.3331]
[1739786266897,6.44979656,2733.5,2733.2,0.73169]
[1739786267108,6.44980656,2733.5,2733.2,0.73169]
[1739786267404,5.71816656,2733.5,2733.2,0.73169]
[1739786267600,0.73167,2733.4,2733.0,4.3331]
[1739786267806,0.73167,2733.4,2733.2,0.7317]
[1739786267994,6.44980656,2733.5,2733.2,0.7317]
[1739786268200,3.89981656,2733.5,2733.2,0.7317]
[1739786268510,2.19519,2734.0,2733.2,0.7317]
[1739786268511,8.92496656,2734.4,2734.0,0.73149]
[1739786268806,2.549,2734.3,2733.7,3.2078]
[1739786269004,6.95076656,2734.4,2733.9,0.00549179]
[1739786269195,9.49976656,2734.4,2733.9,0.00549179]
[1739786269399,9.49976656,2734.4,2734.2,0.73142]
[1739786269599,9.49976656,2734.4,2733.9,0.00549179]
[1739786269795,10.23115656,2734.4,2734.1,0.73145]
[1739786270101,7.02335656,2734.4,2734.1,0.73145]
[1739786270903,7.02336656,2734.4,2734.1,0.73145]
[1739786271097,7.02336656,2734.4,2734.0,3.2078]
[1739786271303,5.71716656,2734.4,2734.3,3.93921]
[1739786271508,6.44847656,2734.7,2734.4,0.73137]
[1739786271703,3.16816656,2734.7,2734.4,0.73137]
[1739786271904,3.16816656,2734.7,2734.6,0.73133]
[1739786272105,3.16816656,2734.7,2734.5,1.29184]
[1739786272702,3.16816656,2734.7,2734.5,0.5605]
[1739786273007,0.73133,2734.6,2734.5,0.5605]
[1739786273202,3.16816656,2734.7,2734.4,0.5527]
[1739786273404,6.37596656,2734.7,2734.3,3.2078]
[1739786273610,3.16816656,2734.4,2734.3,3.2078]
[1739786274109,3.2078,2735.0,2734.3,11.06755806]
[1739786274410,3.2078,2735.0,2734.8,0.73126]
[1739786274611,3.2078,2735.0,2734.6,3.93911]
[1739786274811,3.2078,2735.0,2734.6,3.2078]
[1739786274812,0.7313,2734.7,2734.6,3.2078]
[1739786275012,5.71616656,2734.9,2734.6,3.2078]
[1739786275212,0.73128,2734.8,2734.6,3.2078]
[1739786275512,0.03976331,2734.8,2734.6,3.2078]
[1739786275708,0.73137,2734.5,2734.3,3.2078]
[1739786276212,0.5748,2734.7,2734.3,3.2078]
[1739786276418,0.78143754,2734.5,2734.3,3.2078]
[1739786277501,0.05007754,2734.4,2734.3,3.2078]
[1739786278209,0.05007754,2734.4,2734.3,3.93921]
[1739786278415,0.05007754,2734.4,2734.3,3.2078]
[1739786279212,0.78145754,2734.4,2734.3,3.2078]
[1739786279417,0.05007754,2734.4,2734.3,3.2078]
[1739786280012,0.05007754,2734.4,2734.3,3.93921]
[1739786280916,0.05007754,2734.4,2734.3,0.73141]
[1739786281118,0.05007754,2734.4,2734.2,1.82682]
[1739786281317,0.05007754,2734.4,2734.3,3.93921]
[1739786282319,0.05007754,2734.4,2734.3,3.2078]
[1739786282518,0.78145754,2734.4,2734.3,3.2078]
[1739786283723,0.78145754,2734.4,2734.2,1.0954]
[1739786283724,0.05007754,2734.4,2734.2,1.0954]
[1739786284018,0.73146,2734.1,2734.0,3.2078]
[1739786284414,3.16816656,2734.3,2734.0,3.2078]
[1739786284614,0.78153754,2734.1,2734.0,3.2078]
[1739786284815,0.05007754,2734.1,2734.0,3.2078]
[1739786285422,0.78153754,2734.1,2734.0,3.2078]
[1739786285923,0.73149,2734.0,2733.9,0.00549179]
[1739786286120,3.89965656,2734.0,2733.9,0.00549179]
[1739786286519,3.9497341,2734.0,2733.9,0.00549179]
[1739786288325,3.9497341,2734.0,2732.8,2.0301]
[1739786288326,12.4260441,2734.0,2732.8,3.2078]
[1739786288626,0.05007754,2733.4,2733.3,0.73168]
[1739786289118,0.05007754,2733.4,2733.1,3.7772]
[1739786289318,0.05007754,2733.4,2733.1,3.78269179]
[1739786289629,0.05007754,2733.3,2733.1,3.78269179]
[1739786290328,0.05007754,2733.3,2733.2,0.7317]
[1739786291026,0.00549179,2733.6,2733.2,0.7317]
[1739786291027,0.00549179,2733.6,2733.2,9.16816656]
[1739786291226,0.00549179,2733.6,2733.4,3.2078]
[1739786291926,0.73162,2733.5,2733.4,3.2078]
[1739786292921,0.00549179,2733.6,2733.4,3.93945]
[1739786293127,0.00549179,2733.6,2733.4,3.2078]
[1739786293526,0.73162,2733.5,2733.4,3.2078]
[1739786294225,0.00549179,2733.6,2733.4,3.2078]
[1739786294729,0.00549179,2733.6,2733.5,0.5304]
[1739786296023,0.73709179,2733.6,2733.5,0.5304]
[1739786296619,0.73709179,2733.6,2733.4,3.2078]
[1739786296932,0.73162,2733.5,2733.4,3.2078]
[1739786297827,0.73162,2733.5,2733.2,0.5305]
[1739786298130,3.2078,2733.5,2733.1,1.10529179]
[1739786298327,0.7317,2733.2,2733.1,1.10529179]
[1739786300325,0.58699179,2733.6,2733.1,1.10529179]
[1739786300526,0.73167,2733.4,2733.1,1.83701179]
[1739786300724,0.58699179,2733.6,2733.1,1.83701179]
[1739786300926,0.73169,2733.3,2733.1,1.83701179]
[1739786301127,0.73168,2733.3,2733.1,1.83701179]
[1739786301332,0.58699179,2733.6,2733.2,0.73169]
[1739786301536,0.73169,2733.3,2733.1,1.83701179]
[1739786301725,0.58699179,2733.6,2733.1,1.83701179]
[1739786302031,0.73168,2733.4,2733.1,1.83701179]
[1739786302425,0.73167,2733.4,2733.2,0.73169]
[1739786303133,2.547,2733.5,2733.1,5.04480179]
[1739786303328,3.27865,2733.5,2733.2,0.73168]
[1739786303529,2.547,2733.5,2733.2,0.73168]
[1739786303730,0.73169,2733.3,2733.1,4.31309179]
[1739786304031,0.73166,2733.4,2733.2,0.73169]
[1739786304625,0.73168,2733.3,2733.2,0.73169]
[1739786304835,0.73168,2733.3,2733.2,0.7317]
[1739786305134,3.27865,2733.5,2733.3,0.73167]
[1739786305735,2.547,2733.5,2733.2,0.73168]
[1739786305937,0.73168,2733.3,2733.1,4.31309179]
[1739786306135,0.73168,2733.3,2733.1,5.04481179]
[1739786306331,0.73168,2733.3,2733.1,5.04480179]
[1739786306638,0.73168,2733.3,2733.1,5.04481179]
[1739786306826,0.7317,2733.2,2733.1,4.31309179]
[1739786307029,2.547,2733.5,2733.1,4.31309179]
[1739786307229,0.7317,2733.3,2733.1,5.04480179]
[1739786307839,0.73167,2733.4,2733.2,0.73169]
[1739786308039,2.547,2733.5,2733.1,4.31309179]
[1739786308336,0.73168,2733.3,2733.2,0.7317]
[1739786308530,2.547,2733.5,2733.1,4.31309179]
[1739786308730,0.73166,2733.4,2733.3,0.73167]
[1739786308935,3.27865,2733.5,2733.3,0.73167]
[1739786309135,0.73165,2733.4,2733.3,0.73167]
[1739786309331,2.547,2733.5,2733.3,0.73167]
[1739786309536,2.547,2733.5,2733.1,1.10529179]
[1739786309737,0.73166,2733.4,2733.2,0.73168]
[1739786309942,0.73166,2733.4,2733.3,0.73168]
[1739786310133,2.547,2733.5,2733.2,0.73168]
[1739786310440,2.547,2733.5,2733.2,0.7317]
[1739786310441,0.73169,2733.3,2733.2,0.7317]
[1739786310841,0.73167,2733.4,2733.1,1.10529179]
[1739786311036,3.27864,2733.5,2733.1,4.31309179]
[1739786311342,0.73165,2733.4,2733.3,0.73166]
[1739786311940,0.73165,2733.4,2733.2,0.73168]
[1739786312444,0.73165,2733.4,2733.3,0.73166]
[1739786312942,3.27864,2733.5,2733.3,0.73166]
[1739786313447,0.73165,2733.4,2733.3,0.73166]
[1739786314040,3.27865,2733.5,2733.3,0.73166]
[1739786314236,0.00549179,2733.6,2733.1,4.31309179]
[1739786314434,2.547,2733.5,2733.1,4.31309179]
[1739786314632,2.547,2733.5,2733.4,0.73165]
[1739786317557,0.00452908,2734.0,2733.9,1.82052]
[1739786319543,0.00452908,2734.0,2733.9,4.98868656]
[1739786319745,2.546,2734.6,2733.9,4.25716656]
[1739786319941,2.546,2734.6,2734.5,0.73136]
[1739786320142,3.27733,2734.6,2734.4,0.73136]
[1739786320434,3.27733,2734.6,2734.5,0.5418]
[1739786320639,2.546,2734.6,2734.5,0.5418]
[1739786320948,3.93909,2734.8,2734.5,1.27314]
[1739786321148,0.73132,2734.7,2734.5,0.5418]
[1739786321442,0.7313,2734.7,2734.5,0.5418]
[1739786322446,3.2078,2734.8,2734.5,1.27314]
[1739786322744,0.77107986,2734.7,2734.5,0.5418]
[1739786322936,0.77107986,2734.7,2734.5,1.0762]
[1739786323140,0.03975986,2734.7,2734.5,1.0762]
[1739786323640,0.03975986,2734.6,2734.5,1.0762]
[1739786324748,0.03975986,2734.6,2734.5,1.80756]
[1739786324942,0.03975986,2734.6,2734.5,1.0762]
[1739786325249,0.03975986,2734.6,2734.5,1.80756]
[1739786325448,0.03975986,2734.6,2734.5,1.0762]
[1739786325649,0.03975986,2734.6,2734.5,1.80756]
[1739786326147,0.03975986,2734.6,2734.5,1.0762]
[1739786327041,0.77108986,2734.6,2734.5,1.0762]
[1739786328458,0.03975986,2734.6,2734.5,1.80756]
[1739786328954,0.8109897,2734.6,2734.5,1.0762]
[1739786329141,0.73136,2734.5,2734.3,3.9392]
[1739786329345,0.0796597,2734.6,2734.3,3.2078]
[1739786329541,0.8109997,2734.6,2734.4,0.73138]
[1739786329743,0.73135,2734.6,2734.4,0.73136]
[1739786329946,0.0796597,2734.5,2734.4,0.73136]
[1739786331553,0.8110197,2734.5,2734.4,0.73136]
[1739786331757,0.0796597,2734.5,2734.4,0.73136]
[1739786333955,0.0796597,2734.5,2734.4,0.73138]
[1739786334957,0.73144,2734.2,2734.1,1.104]
[1739786335250,8.32417492,2734.2,2733.4,0.73164]
[1739786335453,0.73161,2733.6,2733.3,3.2078]
[1739786335960,0.73162,2733.6,2733.3,3.2078]
[1739786336349,0.11958836,2733.5,2733.3,3.2078]
[1739786336959,3.28775492,2733.5,2733.0,3.7481]
[1739786337357,0.7317,2733.2,2733.0,3.7481]
[1739786337656,0.7317,2733.2,2733.0,3.2078]
[1739786338454,0.85128836,2733.2,2733.0,3.2078]
[1739786338758,0.11958836,2733.2,2733.0,3.2078]
[1739786339455,0.85128836,2733.2,2733.0,3.2078]
[1739786339664,4.01945492,2733.2,2733.0,3.2078]
[1739786339852,0.73181,2732.9,2732.5,0.5831]
[1739786340058,5.71216656,2732.9,2732.5,0.5831]
[1739786340258,5.71216656,2732.9,2732.6,0.73185]
[1739786340454,5.71216656,2732.9,2732.4,3.2078]
[1739786340758,0.11958836,2732.7,2732.1,0.73199]
[1739786340960,0.11958836,2732.7,2732.0,4.8376]
[1739786340961,0.73192,2732.4,2732.0,4.8376]
[1739786341164,3.27692,2732.4,2732.0,4.8376]
[1739786341659,0.11958836,2732.2,2732.0,4.8376]
[1739786341962,0.11958836,2732.2,2732.0,5.56962]
[1739786342164,0.11958836,2732.2,2732.0,4.8376]
[1739786342461,0.11958836,2732.2,2732.0,5.56962]
[1739786342657,2.545,2732.4,2732.1,0.61241164]
[1739786342862,3.27692,2732.4,2732.0,5.56961]
[1739786343155,2.545,2732.4,2732.0,4.8376]
[1739786344057,2.545,2732.4,2732.3,0.73195]
[1739786344356,2.545,2732.4,2732.0,4.8376]
[1739786344559,2.545,2732.4,2732.2,0.73196]
[1739786344759,2.545,2732.4,2732.3,0.73195]
[1739786345062,3.17365835,2732.9,2732.6,0.73186]
[1739786345063,2.545,2732.7,2732.6,0.73186]
[1739786345664,2.545,2732.8,2732.7,0.73182]
[1739786346553,2.545,2732.8,2732.4,1.82979]
[1739786346554,0.00549179,2732.9,2732.8,0.73181]
[1739786346959,0.00549179,2732.9,2732.7,0.5826]
[1739786346960,0.73728179,2732.9,2732.7,0.5826]
[1739786347163,0.00549179,2732.9,2732.8,0.73181]
[1739786347563,0.73729179,2732.9,2732.3,3.2078]
[1739786347759,0.00549179,2732.9,2732.3,3.2078]
[1739786348061,0.00549179,2732.9,2732.7,0.73183]
[1739786348563,0.00549179,2732.9,2732.8,0.73181]
[1739786349759,0.00549179,2732.9,2732.8,1.26681]
[1739786352871,6.37596656,2733.6,2732.9,1.82942]
[1739786353067,6.37596656,2733.6,2733.2,3.2078]
[1739786353367,2.545,2733.5,2733.4,0.73165]
[1739786353564,3.27655,2733.8,2733.6,0.73159]
[1739786353763,2.545,2733.8,2733.6,0.73159]
[1739786354066,2.545,2733.8,2733.7,0.73157]
[1739786354672,2.545,2734.0,2733.5,3.2078]
[1739786354967,2.545,2734.0,2733.4,0.59079179]
[1739786354968,2.545,2734.1,2733.8,3.2078]
[1739786355160,6.37596656,2734.5,2733.9,0.5553]
[1739786355365,2.545,2734.4,2734.2,0.73143]
[1739786356166,2.545,2734.4,2734.0,0.5541]
[1739786356374,2.545,2734.4,2734.2,0.73143]
[1739786356774,2.545,2734.4,2734.0,0.5541]
[1739786357073,5.71216656,2734.7,2734.1,3.2078]
[1739786357268,6.44346656,2734.7,2734.1,3.2078]
[1739786357571,5.71216656,2734.7,2734.1,3.93925]
[1739786357770,0.73134,2734.6,2734.2,0.73142]
[1739786358071,3.2078,2735.1,2734.4,3.2078]
[1739786358281,3.16816656,2735.2,2734.5,0.5406]
[1739786358572,3.16816656,2734.9,2734.5,0.5406]
[1739786358768,3.16816656,2734.6,2734.1,3.763]
[1739786358965,3.89950656,2734.6,2734.1,4.3036]
[1739786359165,3.89950656,2734.6,2734.1,5.03504]
[1739786359774,3.89950656,2734.6,2734.1,4.3036]
[1739786359977,3.16816656,2734.6,2734.1,4.3036]
[1739786360274,0.73137,2734.5,2734.1,4.3036]
[1739786360474,3.16816656,2734.6,2734.1,4.3036]
[1739786360674,3.89957656,2734.3,2734.1,3.763]
[1739786361175,5.71216656,2734.3,2733.7,3.2078]
[1739786361374,5.71216656,2734.3,2733.6,0.5406]
[1739786361375,0.73153,2733.9,2733.6,1.1074]
[1739786361569,3.16816656,2733.7,2733.6,0.5668]
[1739786361771,3.89975656,2733.7,2733.4,3.21329179]
[1739786362082,0.73162,2733.5,2733.4,0.00549179]
[1739786362466,3.27462,2733.5,2733.4,0.00549179]
[1739786363167,3.80902,2733.5,2733.4,0.00549179]
[1739786364481,3.0774,2733.5,2733.0,3.2078]
[1739786364671,3.16816656,2733.1,2733.0,3.2078]
[1739786365276,2.543,2733.5,2733.1,0.73172]
[1739786365678,2.543,2733.5,2733.2,0.7317]
[1739786365872,2.543,2733.5,2733.1,0.73172]
[1739786366073,2.543,2733.5,2733.0,3.21329179]
[1739786366279,2.543,2733.5,2733.2,0.73169]
[1739786366672,2.543,2733.4,2733.2,0.73169]
[1739786366876,2.543,2733.4,2733.2,0.73168]
[1739786367378,0.73710179,2733.6,2733.3,0.73167]
[1739786367379,2.543,2733.5,2733.3,0.73167]
[1739786368074,2.543,2733.5,2733.0,3.21329179]
[1739786368274,3.27464,2733.5,2733.1,0.73173]
[1739786368680,2.543,2733.5,2733.0,3.21329179]
[1739786368980,3.27464,2733.5,2733.0,3.94503179]
[1739786369180,3.27464,2733.5,2733.1,0.73172]
[1739786369587,2.543,2733.5,2733.0,3.21329179]
[1739786369775,2.543,2733.5,2733.3,0.73166]
[1739786370083,2.543,2733.5,2733.4,0.73165]
[1739786370681,0.00549179,2733.6,2733.5,0.73162]
[1739786372181,0.73164,2733.5,2733.3,1.1231]
[1739786372979,0.73165,2733.4,2733.3,1.1231]
[1739786373475,0.73165,2733.4,2733.3,0.5422]
[1739786373676,3.16816656,2733.4,2733.0,3.21329179]
[1739786373882,0.73173,2733.1,2733.0,3.21329179]
[1739786374284,0.73173,2733.2,2733.0,3.21329179]
[1739786374880,0.73172,2733.2,2733.0,3.21329179]
[1739786375086,0.7317,2733.2,2733.0,3.21329179]
[1739786375287,3.27469,2733.3,2733.0,3.94503179]
[1739786375790,0.73171,2733.2,2733.0,3.94503179]
[1739786376088,2.543,2733.3,2733.0,3.21329179]
[1739786376288,2.543,2733.3,2733.1,0.73171]
[1739786376686,3.27468,2733.3,2733.1,0.73171]
[1739786376885,2.543,2733.3,2733.1,0.73171]
[1739786377187,2.543,2733.4,2733.2,0.73169]
[1739786377378,3.27465,2733.4,2733.2,0.73169]